bitfinex/quotes_BTCUSD_20250519
["timestamp","ask_amount","ask_price","bid_price","bid_amount"]
[1747646187332,0.02906262,103220.0,103210.0,0.25904862]
[1747646187536,0.05327373,103230.0,103220.0,0.21313631]
[1747646187756,0.04615962,103230.0,103220.0,0.22282369]
[1747646187996,0.03874653,103230.0,103220.0,0.22282369]
[1747646188196,0.0561711,103240.0,103230.0,0.2228023]
[1747646188417,0.02237101,103240.0,103230.0,0.2228023]
[1747646188634,0.04174268,103240.0,103230.0,0.23378876]
[1747646188763,0.05142875,103240.0,103230.0,0.23378876]
[1747646188980,0.27895211,103240.0,103230.0,0.23378876]
[1747646189388,0.27595211,103240.0,103230.0,0.23378876]
[1747646189901,0.07254268,103240.0,103230.0,0.23378876]
[1747646190118,0.07254268,103240.0,103230.0,0.23995476]
[1747646190332,0.07454268,103240.0,103230.0,0.23995476]
[1747646190530,0.25106594,103240.0,103230.0,0.23995476]
[1747646190787,0.2780521,103240.0,103230.0,0.23995476]
[1747646191246,0.26836669,103240.0,103230.0,0.23026832]
[1747646191362,0.26836669,103240.0,103230.0,0.23995495]
[1747646191574,0.26836669,103240.0,103230.0,0.24964149]
[1747646192418,0.26836669,103240.0,103230.0,0.23026832]
[1747646192617,0.47300669,103240.0,103230.0,0.01715246]
[1747646192824,0.4536354,103240.0,103230.0,0.01715246]
[1747646193954,0.4536354,103240.0,103230.0,0.21089458]
[1747646194170,1.76229798,103240.0,103230.0,5.246e-05]
[1747646194386,0.57642903,103230.0,103220.0,0.00821856]
[1747646194586,1.99798891,103230.0,103220.0,0.00821856]
[1747646195426,0.57814874,103220.0,103210.0,0.00014375]
[1747646195628,0.92354338,103220.0,103210.0,0.00014375]
[1747646212171,0.92354338,103220.0,103200.0,0.001]
[1747646212172,1.31170931,103210.0,103200.0,0.001]
[1747646212385,0.83658353,103190.0,103180.0,0.001]
[1747646212616,1.55689293,103190.0,103180.0,0.001]
[1747646212817,1.10424769,103190.0,103180.0,0.001]
[1747646213029,1.49538769,103190.0,103180.0,0.001]
[1747646213232,1.74347293,103190.0,103180.0,0.001]
[1747646213380,1.76047293,103190.0,103180.0,0.001]
[1747646214527,1.85778233,103190.0,103180.0,0.001]
[1747646214904,1.86078233,103190.0,103180.0,0.001]
[1747646215311,1.86278233,103190.0,103180.0,0.001]
[1747646225266,1.70202757,103190.0,103180.0,0.001]
[1747646225396,2.11074757,103190.0,103180.0,0.001]
[1747646225606,1.86266233,103190.0,103180.0,0.001]
[1747646226036,1.76535293,103190.0,103180.0,0.001]
[1747646226603,1.76423293,103190.0,103180.0,0.001]
[1747646238319,0.46132486,103170.0,103160.0,0.0165]
[1747646238520,0.96655426,103170.0,103160.0,0.01697944]
[1747646239491,0.96655426,103170.0,103160.0,0.01356038]
[1747646239675,0.31054902,103170.0,103160.0,0.02886038]
[1747646239878,0.31054902,103170.0,103160.0,0.25181387]
[1747646239879,0.00969198,103170.0,103160.0,0.25181387]
[1747646240076,0.22291009,103180.0,103170.0,0.2285398]
[1747646240294,0.22291065,103180.0,103170.0,0.22853989]
[1747646241149,0.20352771,103180.0,103170.0,0.0153]
[1747646241357,0.20352771,103180.0,103170.0,0.21409806]
[1747646241571,0.30083711,103180.0,103170.0,0.02024326]
[1747646242544,0.30083711,103180.0,103170.0,0.21963598]
[1747646242696,0.50463711,103180.0,103170.0,0.23902117]
[1747646243099,0.50463711,103180.0,103170.0,0.24723973]
[1747646243836,0.50563711,103180.0,103170.0,0.24723973]
[1747646244690,0.40832771,103180.0,103170.0,0.24723973]
[1747646244866,0.40832771,103180.0,103170.0,0.23754728]
[1747646245164,0.40832771,103180.0,103170.0,0.22932872]
[1747646246024,0.40832771,103180.0,103170.0,0.23902127]
[1747646246415,0.40832771,103180.0,103170.0,0.24871372]
[1747646246940,0.39863601,103180.0,103170.0,0.22932872]
[1747646249613,0.01069142,103180.0,103170.0,0.24871334]
[1747646249795,0.02038237,103180.0,103170.0,0.25840542]
[1747646250286,0.001,103180.0,103170.0,0.25840542]
[1747646250504,0.01069095,103180.0,103170.0,0.27294627]
[1747646251280,0.001,103180.0,103170.0,0.28116483]
[1747646254023,0.001,103180.0,103170.0,0.71847423]
[1747646254666,0.001,103180.0,103170.0,0.71025567]
[1747646254870,0.001,103180.0,103170.0,0.91377567]
[1747646255545,0.001,103190.0,103180.0,0.22291027]
[1747646255749,0.001,103190.0,103180.0,0.56982052]
[1747646256083,0.001,103190.0,103180.0,0.91476378]
[1747646257312,0.001,103190.0,103180.0,0.92298234]
[1747646258474,0.001,103190.0,103180.0,0.92498234]
[1747646259208,0.001,103190.0,103180.0,0.93491863]
[1747646259705,0.001,103190.0,103180.0,0.93291863]
[1747646260119,0.001,103190.0,103180.0,0.93791863]
[1747646264061,0.01069001,103190.0,103180.0,0.93791863]
[1747646264273,0.001,103190.0,103180.0,0.93791863]
[1747646270024,0.001,103190.0,103180.0,0.73395863]
[1747646270721,0.001,103190.0,103180.0,0.72574007]
[1747646277569,0.02038068,103190.0,103180.0,0.70994007]
[1747646277776,0.22388849,103190.0,103180.0,0.70994007]
[1747646277974,0.02038059,103190.0,103180.0,0.27238589]
[1747646278471,0.0106902,103190.0,103180.0,0.27238589]
[1747646279305,0.02038068,103190.0,103180.0,0.27238589]
[1747646279510,0.01973158,103190.0,103180.0,0.27238589]
[1747646280101,0.01973149,103190.0,103180.0,0.27238589]
[1747646280344,0.05113149,103190.0,103180.0,0.00994326]
[1747646280527,0.69599443,103190.0,103180.0,0.00994326]
[1747646280928,0.79330383,103190.0,103180.0,0.00994326]
[1747646282128,0.79330383,103190.0,103180.0,0.00794326]
[1747646282267,0.79330383,103190.0,103180.0,0.00594326]
[1747646282684,0.59034383,103190.0,103180.0,0.00794326]
[1747646283965,0.99662383,103190.0,103180.0,0.00794326]
[1747646286666,0.99662383,103190.0,103180.0,0.003]
[1747646287469,1.33662383,103190.0,103180.0,0.003]
[1747646289886,0.93034383,103190.0,103180.0,0.003]
[1747646290922,1.33602383,103190.0,103180.0,0.003]
[1747646293458,0.93034383,103190.0,103180.0,0.003]
[1747646293661,1.33598383,103190.0,103180.0,0.003]
[1747646294249,1.08789859,103190.0,103180.0,0.003]
[1747646294508,1.33598383,103190.0,103180.0,0.003]
[1747646299457,1.33608383,103190.0,103180.0,0.003]
[1747646300487,1.42771952,103190.0,103180.0,0.003]
[1747646300882,1.33608383,103190.0,103180.0,0.003]
[1747646301388,0.21323962,103170.0,103160.0,0.00047944]
[1747646301691,0.99561426,103170.0,103160.0,0.00047944]
[1747646302610,0.99561426,103170.0,103160.0,0.00147944]
[1747646302812,0.99561426,103170.0,103160.0,0.00347944]
[1747646303402,0.73162902,103170.0,103160.0,0.00347944]
[1747646306630,0.73162902,103170.0,103160.0,0.00840132]
[1747646308221,0.73162902,103170.0,103160.0,0.02450132]
[1747646308771,0.73162902,103170.0,103160.0,0.00840132]
[1747646309434,0.73162902,103170.0,103160.0,0.02450132]
[1747646312606,0.73162902,103170.0,103160.0,0.00840132]
[1747646315710,0.90952089,103170.0,103160.0,0.00840132]
[1747646316217,0.89442089,103170.0,103160.0,0.00840132]
[1747646317867,0.91052089,103170.0,103160.0,0.00840132]
[1747646318758,1.25052089,103170.0,103160.0,0.00740132]
[1747646319183,1.25052089,103170.0,103160.0,0.00540132]
[1747646319394,1.23410089,103170.0,103160.0,0.00540132]
[1747646320022,1.23510089,103170.0,103160.0,0.00540132]
[1747646321858,1.32033669,103170.0,103160.0,0.00540132]
[1747646322469,1.33603669,103170.0,103160.0,0.00540132]
[1747646323845,1.33603669,103170.0,103160.0,0.00047944]
[1747646324079,1.33603669,103170.0,103160.0,0.00541159]
[1747646326980,1.33603669,103170.0,103160.0,0.00047944]
[1747646329967,1.32033669,103170.0,103160.0,0.00047944]
[1747646332406,1.33543669,103170.0,103160.0,0.00047944]
[1747646333774,1.32033669,103170.0,103160.0,0.00047944]
[1747646335322,1.11801669,103170.0,103160.0,0.00047944]
[1747646335525,1.32001669,103170.0,103160.0,0.00047944]
[1747646338533,1.58314436,103170.0,103160.0,0.00047944]
[1747646341253,1.68045376,103170.0,103160.0,0.00047944]
[1747646341457,1.58314436,103170.0,103160.0,0.00047944]
[1747646341879,1.58214436,103170.0,103160.0,0.00047944]
[1747646342082,1.58414436,103170.0,103160.0,0.00047944]
[1747646343333,2.00282436,103170.0,103160.0,0.00047944]
[1747646343617,2.00482436,103170.0,103160.0,0.00047944]
[1747646343782,1.83444078,103170.0,103160.0,0.00047944]
[1747646344873,1.86562796,103170.0,103160.0,0.00047944]
[1747646345261,1.89016881,103170.0,103160.0,0.00047944]
[1747646346138,1.88816881,103170.0,103160.0,0.00047944]
[1747646346341,0.91035271,103150.0,103140.0,0.001]
[1747646346488,1.41178211,103150.0,103140.0,0.001]
[1747646347386,1.08611035,103150.0,103140.0,0.001]
[1747646347539,1.24894623,103150.0,103140.0,0.001]
[1747646347705,1.25094623,103150.0,103140.0,0.001]
[1747646348113,1.23484623,103150.0,103140.0,0.001]
[1747646348312,1.23484623,103150.0,103140.0,0.017]
[1747646348682,0.81542623,103150.0,103140.0,0.017]
[1747646348875,1.21950623,103150.0,103140.0,0.017]
[1747646349651,1.30481588,103150.0,103140.0,0.017]
[1747646352226,1.10305588,103150.0,103140.0,0.017]
[1747646352453,1.30477588,103150.0,103140.0,0.017]
[1747646352672,0.90073588,103150.0,103140.0,0.017]
[1747646352887,1.30413588,103150.0,103140.0,0.017]
[1747646355026,0.31259035,103150.0,103140.0,0.017]
[1747646355247,0.10900326,103150.0,103140.0,0.24680182]
[1747646355468,0.002,103150.0,103140.0,0.25649672]
[1747646355907,0.019388,103150.0,103140.0,0.25649672]
[1747646356336,0.01017102,103170.0,103160.0,0.22295367]
[1747646356551,0.01986329,103170.0,103160.0,0.26404678]
[1747646356756,0.23310329,103170.0,103160.0,0.26404678]
[1747646357366,0.23310329,103170.0,103160.0,0.25927855]
[1747646357936,0.23310329,103170.0,103160.0,0.26897157]
[1747646358713,0.02955575,103170.0,103160.0,0.26897157]
[1747646358890,0.00047885,103170.0,103160.0,0.26897157]
[1747646359095,0.01986291,103170.0,103160.0,0.28351242]
[1747646360174,0.00047885,103170.0,103160.0,0.28351242]
[1747646360578,0.00047885,103170.0,103160.0,0.28967909]
[1747646361213,0.03924829,103170.0,103160.0,0.28967909]
[1747646361389,0.22341111,103170.0,103160.0,0.24605872]
[1747646361624,0.02955631,103170.0,103160.0,0.26544522]
[1747646361827,0.23310385,103170.0,103160.0,0.26544522]
[1747646362035,0.01986367,103170.0,103160.0,0.27513824]
[1747646362240,0.02955565,103170.0,103160.0,0.27513824]
[1747646363376,0.02955565,103170.0,103160.0,0.26897157]
[1747646363625,0.02955555,103170.0,103160.0,0.27297157]
[1747646364007,0.0392481,103170.0,103160.0,0.27297157]
[1747646365219,0.04894074,103170.0,103160.0,0.27297157]
[1747646365716,0.0392481,103170.0,103160.0,0.27297157]
[1747646369152,0.0198631,103170.0,103160.0,0.27297157]
[1747646369687,0.02955555,103170.0,103160.0,0.27297157]
[1747646370505,0.0198631,103170.0,103160.0,0.27297157]
[1747646370703,0.0392481,103170.0,103160.0,0.27297157]
[1747646372709,0.02955555,103170.0,103160.0,0.27297157]
[1747646373683,0.0392481,103170.0,103160.0,0.27297157]
[1747646374939,0.02955555,103170.0,103160.0,0.27297157]
[1747646375141,0.0392481,103170.0,103160.0,0.24827874]
[1747646375369,0.0392481,103170.0,103160.0,0.25797176]
[1747646375718,0.0392481,103170.0,103160.0,0.27357176]
[1747646376672,0.2331029,103170.0,103160.0,0.26387874]
[1747646376865,0.2331029,103170.0,103160.0,0.27357185]
[1747646377107,0.0392481,103170.0,103160.0,0.28326487]
[1747646378098,0.02955555,103170.0,103160.0,0.28326487]
[1747646378310,0.0392481,103170.0,103160.0,0.28326487]
[1747646379161,0.01017083,103170.0,103160.0,0.28326487]
[1747646379332,0.02955527,103170.0,103160.0,0.28326487]
[1747646379492,0.02955518,103170.0,103160.0,0.28326487]
[1747646379994,0.01986291,103170.0,103160.0,0.28326487]
[1747646380627,0.02955508,103170.0,103160.0,0.28326487]
[1747646380822,0.01986291,103170.0,103160.0,0.28326487]
[1747646380987,0.019863,103170.0,103160.0,0.28326487]
[1747646381227,0.01017083,103170.0,103160.0,0.28326487]
[1747646381770,0.01017074,103170.0,103160.0,0.28326487]
[1747646381972,0.00047885,103170.0,103160.0,0.28326487]
[1747646382216,0.00047885,103170.0,103160.0,0.39511512]
[1747646383424,0.00047885,103170.0,103160.0,0.40333791]
[1747646386117,0.00047885,103170.0,103160.0,0.39511512]
[1747646389136,0.0387652,103180.0,103170.0,0.25423188]
[1747646389349,0.0387652,103180.0,103170.0,0.25427982]
[1747646390680,0.0387652,103180.0,103170.0,0.26742381]
[1747646391089,0.00969104,103180.0,103170.0,0.26742381]
[1747646391542,0.0004509,103190.0,103180.0,0.23921055]
[1747646391744,0.03921208,103190.0,103180.0,0.24890169]
[1747646391945,0.24272017,103190.0,103180.0,0.24890169]
[1747646392984,0.24472017,103190.0,103180.0,0.24890169]
[1747646393204,0.22534005,103190.0,103180.0,0.21982781]
[1747646393409,0.00969161,103180.0,103170.0,0.25823173]
[1747646393528,0.00969161,103180.0,103170.0,0.26792381]
[1747646393529,0.01938246,103180.0,103170.0,0.26792381]
[1747646393750,0.03876549,103180.0,103170.0,0.24877218]
[1747646394198,0.0387653,103180.0,103170.0,0.24877199]
[1747646394362,0.24229301,103180.0,103170.0,0.25846407]
[1747646394954,0.23260206,103180.0,103170.0,0.2440087]
[1747646395170,0.23260206,103180.0,103170.0,0.25370087]
[1747646396071,0.23260263,103180.0,103170.0,0.23431643]
[1747646396312,0.22911951,103180.0,103170.0,0.00497682]
[1747646396520,0.24511951,103180.0,103170.0,0.00497682]
[1747646397341,0.24511951,103180.0,103170.0,0.01935599]
[1747646400278,0.22911951,103180.0,103170.0,0.01113908]
[1747646402778,0.22911951,103180.0,103170.0,0.21468652]
[1747646402949,0.21321951,103180.0,103170.0,0.24017907]
[1747646403167,0.21995899,103190.0,103180.0,0.19383601]
[1747646403370,0.52771896,103190.0,103180.0,0.21321932]
[1747646403533,0.51171896,103190.0,103180.0,0.22881932]
[1747646403735,0.41440956,103190.0,103180.0,0.21912781]
[1747646403968,0.20395899,103190.0,103180.0,0.0156]
[1747646404165,0.21925899,103190.0,103180.0,0.19876489]
[1747646404637,0.21925899,103190.0,103180.0,0.20845669]
[1747646404849,0.20395899,103190.0,103180.0,0.23394839]
[1747646405187,0.0004509,103190.0,103180.0,0.29306332]
[1747646405394,0.0208312,103190.0,103180.0,0.29306332]
[1747646405811,0.03052159,103190.0,103180.0,0.27756332]
[1747646406063,0.03052159,103190.0,103180.0,0.28578023]
[1747646406064,0.03152159,103190.0,103180.0,0.28578023]
[1747646406325,0.04121216,103190.0,103180.0,0.28578023]
[1747646407719,0.03152159,103190.0,103180.0,0.28578023]
[1747646408168,0.03152159,103190.0,103180.0,0.30098023]
[1747646408526,0.04121216,103190.0,103180.0,0.30098023]
[1747646408743,0.04121207,103190.0,103180.0,0.30098023]
[1747646409047,0.0218312,103190.0,103180.0,0.30098023]
[1747646409260,0.03152168,103190.0,103180.0,0.30098023]
[1747646410313,0.03921235,103190.0,103180.0,0.30098023]
[1747646410497,0.02952168,103190.0,103180.0,0.30098023]
[1747646410735,0.01014091,103190.0,103180.0,0.30098023]
[1747646410925,0.0101411,103190.0,103180.0,0.30098023]
[1747646411197,0.02952216,103190.0,103180.0,0.30098023]
[1747646411481,0.02952197,103190.0,103180.0,0.28578023]
[1747646414201,0.0101411,103190.0,103180.0,0.28578023]
[1747646414609,0.01983149,103190.0,103180.0,0.30218023]
[1747646415462,0.01983149,103190.0,103180.0,0.28578023]
[1747646415834,0.01014101,103190.0,103180.0,0.28578023]
[1747646416001,0.01014101,103190.0,103180.0,0.30178023]
[1747646416209,0.02952169,103190.0,103180.0,0.30178023]
[1747646416422,0.0198313,103190.0,103180.0,0.30178023]
[1747646416631,0.01014101,103190.0,103180.0,0.30178023]
[1747646416839,0.0198314,103190.0,103180.0,0.30178023]
[1747646417183,0.01014101,103190.0,103180.0,0.30178023]
[1747646417543,0.0004509,103190.0,103180.0,0.30178023]
[1747646420502,0.0101411,103190.0,103180.0,0.30178023]
[1747646422932,0.0101411,103190.0,103180.0,0.28578023]
[1747646423283,0.0101411,103190.0,103180.0,0.30088023]
[1747646428559,0.01983139,103190.0,103180.0,0.30088023]
[1747646431075,0.01983139,103190.0,103180.0,0.28578023]
[1747646432523,0.01975802,103190.0,103180.0,0.28578023]
[1747646433909,0.01975802,103190.0,103180.0,0.01314579]
[1747646433910,1.85213135,103190.0,103180.0,0.01314579]
[1747646434175,1.85695776,103190.0,103180.0,0.01314579]
[1747646434661,1.86695776,103190.0,103180.0,0.01314579]
[1747646434881,1.86695776,103190.0,103180.0,0.00821691]
[1747646435766,1.78976339,103190.0,103180.0,0.00821691]
[1747646436447,1.78076339,103190.0,103180.0,0.00821691]
[1747646436650,0.20352762,103180.0,103170.0,4.794e-05]
[1747646436855,0.58150619,103180.0,103170.0,4.794e-05]
[1747646439313,0.58250619,103180.0,103170.0,4.794e-05]
[1747646439513,0.78262619,103180.0,103170.0,4.794e-05]
[1747646439717,0.78362619,103180.0,103170.0,4.794e-05]
[1747646441730,0.81271719,103180.0,103170.0,4.794e-05]
[1747646442733,0.36452802,103180.0,103170.0,4.794e-05]
[1747646442948,0.31933702,103180.0,103170.0,4.794e-05]
[1747646443157,0.51941702,103180.0,103170.0,4.794e-05]
[1747646443508,0.40560762,103180.0,103170.0,4.794e-05]
[1747646443719,0.40560762,103180.0,103170.0,0.01564794]
[1747646445304,0.40560762,103180.0,103170.0,4.794e-05]
[1747646445958,0.20552762,103180.0,103170.0,4.794e-05]
[1747646446165,0.40552762,103180.0,103170.0,4.794e-05]
[1747646448994,0.42172762,103180.0,103170.0,4.794e-05]
[1747646452895,0.51903702,103180.0,103170.0,4.794e-05]
[1747646455164,0.53553702,103180.0,103170.0,4.794e-05]
[1747646455466,0.78360619,103180.0,103170.0,4.794e-05]
[1747646455666,1.12360619,103180.0,103170.0,4.794e-05]
[1747646456233,1.22091559,103180.0,103170.0,4.794e-05]
[1747646456433,1.12360619,103180.0,103170.0,4.794e-05]
[1747646460389,1.12360619,103180.0,103170.0,4.794e-05]
[1747646462724,1.12332619,103180.0,103170.0,4.794e-05]
[1747646465356,1.37139536,103180.0,103170.0,4.794e-05]
[1747646465758,2.10433621,103180.0,103170.0,4.794e-05]
[1747646465962,2.10233621,103180.0,103170.0,4.794e-05]
[1747646466169,2.18964561,103180.0,103170.0,4.794e-05]
[1747646466408,2.19864561,103180.0,103170.0,4.794e-05]
[1747646466957,2.22830621,103180.0,103170.0,4.794e-05]
[1747646467160,7.42606421,103180.0,103170.0,4.794e-05]
[1747646467570,0.58508095,103150.0,103140.0,0.001]
[1747646467782,1.33017952,103150.0,103140.0,0.00147885]
[1747646468815,1.74985952,103150.0,103140.0,0.00147885]
[1747646469023,1.75085952,103150.0,103140.0,0.00147885]
[1747646470098,2.72186954,103150.0,103140.0,0.00147885]
[1747646470762,2.73086954,103150.0,103140.0,0.00147885]
[1747646470979,2.81817894,103150.0,103140.0,0.00147885]
[1747646471156,2.81817894,103150.0,103120.0,0.001]
[1747646471157,0.24632232,103130.0,103120.0,0.001]
[1747646471360,1.34138089,103130.0,103120.0,0.00114391]
[1747646471574,1.37104149,103130.0,103120.0,0.00114391]
[1747646472694,1.37104149,103130.0,103120.0,0.00214391]
[1747646472930,1.46835089,103130.0,103120.0,0.00214391]
[1747646473308,1.50858817,103130.0,103120.0,0.00214391]
[1747646473986,1.50958817,103130.0,103120.0,0.00214391]
[1747646474368,2.20798817,103130.0,103120.0,0.00214391]
[1747646474577,2.18229174,103130.0,103120.0,0.00214391]
[1747646475644,2.17229174,103130.0,103120.0,0.00214391]
[1747646475880,2.05532174,103130.0,103120.0,0.00214391]
[1747646476093,2.04078089,103130.0,103120.0,0.00214391]
[1747646478162,1.64110089,103130.0,103120.0,0.00214391]
[1747646478365,2.04022089,103130.0,103120.0,0.00214391]
[1747646478579,2.13753029,103130.0,103120.0,0.00214391]
[1747646479730,2.16719089,103130.0,103120.0,0.00214391]
[1747646480530,2.16715089,103130.0,103120.0,0.02214391]
[1747646482746,1.76807089,103130.0,103120.0,0.02214391]
[1747646482963,2.16715089,103130.0,103120.0,0.02214391]
[1747646483560,1.76807089,103130.0,103120.0,0.02214391]
[1747646483790,2.16711089,103130.0,103120.0,0.02214391]
[1747646483990,2.18165174,103130.0,103120.0,0.02214391]
[1747646485236,1.78261174,103130.0,103120.0,0.02214391]
[1747646485431,1.75295114,103130.0,103120.0,0.02214391]
[1747646485634,2.15203114,103130.0,103120.0,0.02214391]
[1747646486045,2.15199114,103130.0,103120.0,0.02214391]
[1747646486396,2.14199114,103130.0,103120.0,0.02214391]
[1747646487087,1.74295114,103130.0,103120.0,0.02214391]
[1747646487508,2.14199114,103130.0,103120.0,0.02214391]
[1747646487986,2.17165174,103130.0,103120.0,0.02214391]
[1747646489338,1.97225174,103130.0,103120.0,0.02214391]
[1747646489599,2.14195114,103130.0,103120.0,0.02214391]
[1747646492348,2.56083114,103130.0,103120.0,0.02214391]
[1747646494899,2.44704174,103130.0,103120.0,0.02214391]
[1747646495463,2.01698089,103130.0,103120.0,0.03734391]
[1747646495666,2.16779172,103130.0,103120.0,0.05284391]
[1747646495912,1.82779172,103130.0,103120.0,0.05284391]
[1747646496345,1.40891172,103130.0,103120.0,0.05284391]
[1747646496709,1.74891172,103130.0,103120.0,0.05777231]
[1747646496913,1.40891172,103130.0,103120.0,0.26141853]
[1747646497126,1.3992157,103130.0,103120.0,0.05777231]
[1747646497475,1.0003357,103130.0,103120.0,0.26141853]
[1747646497681,0.5011757,103130.0,103120.0,0.05777231]
[1747646497891,0.32132821,103130.0,103120.0,0.27111568]
[1747646498090,0.31163219,103130.0,103120.0,0.05777231]
[1747646498549,0.31063219,103130.0,103120.0,0.06392406]
[1747646499241,0.31063219,103130.0,103120.0,0.27726744]
[1747646499456,0.31063219,103130.0,103120.0,0.27626744]
[1747646499678,0.31063219,103130.0,103120.0,0.29566146]
[1747646499879,0.31063219,103130.0,103120.0,0.29866146]
[1747646500121,0.31063219,103130.0,103120.0,0.27826744]
[1747646500326,0.31063219,103130.0,103120.0,0.06692406]
[1747646500448,0.31063219,103130.0,103120.0,0.27057028]
[1747646502310,0.30093588,103130.0,103120.0,0.27057028]
[1747646504348,0.29123939,103130.0,103120.0,0.27057028]
[1747646504564,0.29123939,103130.0,103120.0,0.06692406]
[1747646507590,0.29123939,103130.0,103120.0,0.06077231]
[1747646507830,0.68927939,103130.0,103120.0,0.06077231]
[1747646508338,0.49027939,103130.0,103120.0,0.06077231]
[1747646508561,0.68927939,103130.0,103120.0,0.06077231]
[1747646515297,0.68927939,103130.0,103120.0,0.05584391]
[1747646518602,0.68927939,103130.0,103120.0,0.06076829]
[1747646522007,0.68927939,103130.0,103120.0,0.04526829]
[1747646523286,0.68927939,103130.0,103120.0,0.06146829]
[1747646525138,0.68899939,103130.0,103120.0,0.06146829]
[1747646525442,0.2036263,103130.0,103120.0,0.06146829]
[1747646527221,0.2036263,103130.0,103120.0,0.06752661]
[1747646528747,0.2036263,103130.0,103120.0,0.07367836]
[1747646530027,0.2036263,103130.0,103120.0,0.06762004]
[1747646538357,0.19392999,103130.0,103120.0,0.26156883]
[1747646538524,0.21332204,103130.0,103120.0,0.27126617]
[1747646538733,0.2036263,103130.0,103120.0,0.06762004]
[1747646538929,0.2036263,103130.0,103120.0,0.26156883]
[1747646539306,0.21332279,103130.0,103120.0,0.28096304]
[1747646539668,0.21332279,103130.0,103120.0,0.28096323]
[1747646539869,0.22301872,103130.0,103120.0,0.28302839]
[1747646540077,0.22301872,103130.0,103120.0,0.28908624]
[1747646540352,0.00969546,103140.0,103130.0,0.23492639]
[1747646540547,0.01938989,103140.0,103130.0,0.22907591]
[1747646540715,0.23269152,103140.0,103130.0,0.21938036]
[1747646540932,0.02908544,103140.0,103130.0,0.22907638]
[1747646541140,0.02908544,103140.0,103130.0,0.2744966]
[1747646541368,0.0387809,103140.0,103130.0,0.2744966]
[1747646541578,0.21328095,103150.0,103140.0,0.02908554]
[1747646541780,0.01938791,103150.0,103140.0,0.25622042]
[1747646542063,0.23266914,103150.0,103140.0,0.25015967]
[1747646542255,0.23266914,103150.0,103140.0,0.26954974]
[1747646542659,0.23266914,103150.0,103140.0,0.28885445]
[1747646543624,0.03877676,103150.0,103140.0,0.28885445]
[1747646544040,0.23266914,103150.0,103140.0,0.27915946]
[1747646544207,0.23266914,103150.0,103140.0,0.28985445]
[1747646544621,0.23266914,103150.0,103140.0,0.29085445]
[1747646545362,0.24236375,103150.0,103140.0,0.29085445]
[1747646546531,0.23266989,103150.0,103140.0,0.28115946]
[1747646547030,0.22297584,103150.0,103140.0,0.28115946]
[1747646547303,0.22297584,103150.0,103140.0,0.27146438]
[1747646547652,0.22297584,103150.0,103140.0,0.28115946]
[1747646548547,0.22297584,103150.0,103140.0,0.27294255]
[1747646549363,0.22297584,103150.0,103140.0,0.28263754]
[1747646550728,0.21328151,103150.0,103140.0,0.2535522]
[1747646552159,0.21328151,103150.0,103140.0,0.24385683]
[1747646552382,0.20358699,103150.0,103140.0,0.24385683]
[1747646552842,0.19389238,103150.0,103140.0,0.03494565]
[1747646553256,0.19399238,103150.0,103140.0,0.22885683]
[1747646554954,0.19399238,103150.0,103140.0,0.03494565]
[1747646556561,0.19399238,103150.0,103140.0,0.22885683]
[1747646556781,0.19399238,103150.0,103140.0,0.03494565]
[1747646557309,0.19399238,103150.0,103140.0,0.22885683]
[1747646558295,0.19399238,103150.0,103140.0,0.03494565]
[1747646563322,0.20929238,103150.0,103140.0,0.03494565]
[1747646563531,0.30660178,103150.0,103140.0,0.01914565]
[1747646566223,0.20368681,103150.0,103140.0,0.27234255]
[1747646566432,0.02918309,103150.0,103140.0,0.27234274]
[1747646566664,0.02918224,103150.0,103140.0,0.29025455]
[1747646567116,0.01948791,103150.0,103140.0,0.29025455]
[1747646567320,0.03887667,103150.0,103140.0,0.29025455]
[1747646567563,0.01948791,103150.0,103140.0,0.29025455]
[1747646567781,0.02918205,103150.0,103140.0,0.29025455]
[1747646567969,0.03887648,103150.0,103140.0,0.29025455]
[1747646568101,0.03887638,103150.0,103140.0,0.29025455]
[1747646569180,0.02918205,103150.0,103140.0,0.38756395]
[1747646569399,0.03887638,103150.0,103140.0,0.38756395]
[1747646569683,0.03887629,103150.0,103140.0,0.38756395]
[1747646569885,0.03887629,103150.0,103140.0,0.38140053]
[1747646572374,0.04857062,103150.0,103140.0,0.38140053]
[1747646572965,0.04857062,103150.0,103140.0,0.37318362]
[1747646574098,0.02918205,103150.0,103140.0,0.37318362]
[1747646574412,0.01948791,103150.0,103140.0,0.37318362]
[1747646574612,0.02918205,103150.0,103140.0,0.37318362]
[1747646574802,0.01948791,103150.0,103140.0,0.37318362]
[1747646575358,0.00979386,103150.0,103140.0,0.37318362]
[1747646575569,0.019488,103150.0,103140.0,0.37318362]
[1747646575970,0.01948791,103150.0,103140.0,0.37318362]
[1747646577123,0.02918215,103150.0,103140.0,0.37318362]
[1747646578036,0.00979386,103150.0,103140.0,0.37318362]
[1747646578191,0.019488,103150.0,103140.0,0.37318362]
[1747646579414,0.02918233,103150.0,103140.0,0.37318362]
[1747646580029,0.00979386,103150.0,103140.0,0.37318362]
[1747646580231,0.019488,103150.0,103140.0,0.37318362]
[1747646580436,0.00979386,103150.0,103140.0,0.37318362]
[1747646580666,0.01948791,103150.0,103140.0,0.37318362]
[1747646581221,0.0001,103150.0,103140.0,0.72772447]
[1747646581425,0.0001,103150.0,103140.0,0.76457526]
[1747646581640,0.0001,103150.0,103140.0,1.17827526]
[1747646581852,0.0001,103150.0,103140.0,1.17727526]
[1747646582062,0.0001,103150.0,103140.0,1.17627526]
[1747646582266,0.001,103170.0,103160.0,0.25435349]
[1747646582476,0.01975783,103190.0,103180.0,0.25431027]
[1747646582693,0.00037753,103190.0,103180.0,0.25431027]
[1747646582886,0.01975783,103190.0,103180.0,0.26036812]
[1747646583003,0.01006754,103190.0,103180.0,0.27350371]
[1747646583202,0.00037753,103190.0,103180.0,0.27350371]
[1747646583487,0.01011562,103190.0,103180.0,0.27350371]
[1747646584024,0.01011553,103190.0,103180.0,0.27350371]
[1747646584246,0.01980582,103190.0,103180.0,0.27350371]
[1747646584661,0.01980582,103190.0,103180.0,0.27450371]
[1747646584866,0.01980582,103190.0,103180.0,0.27550371]
[1747646585285,0.00042542,103190.0,103180.0,0.27550371]
[1747646585785,0.01011553,103190.0,103180.0,0.27550371]
[1747646585951,0.00042542,103190.0,103180.0,0.28164758]
[1747646587189,0.00042542,103190.0,103180.0,0.39349783]
[1747646587389,0.00042542,103190.0,103180.0,0.93137783]
[1747646587570,0.00042542,103190.0,103180.0,1.62999092]
[1747646588176,0.00042542,103190.0,103180.0,1.62899092]
[1747646588605,0.00042542,103190.0,103180.0,1.62584705]
[1747646588766,0.00042542,103190.0,103180.0,1.61763584]
[1747646588973,0.00042542,103190.0,103180.0,1.61663584]
[1747646589302,0.00042542,103190.0,103180.0,1.53920275]
[1747646589521,0.001,103210.0,103200.0,0.25506706]
[1747646589704,0.00147944,103210.0,103200.0,0.96391646]
[1747646589861,0.00147944,103210.0,103200.0,1.32451516]
[1747646590482,0.00147944,103210.0,103200.0,1.32943954]
[1747646590917,0.00147944,103210.0,103200.0,1.33743954]
[1747646591547,0.00147944,103210.0,103200.0,1.34559726]